Workbook

Sheet PvT
B2: INTERMEDIATE PRESSURE/TEMPERATURE CLASS LIMITS
P3: MATERIALS: | AC3: Date | AD3: Rev# | AE3: Notes
C4: SELECT INDUSTRY STANDARD & MATERIAL GROUP | Q4: =INDEX(INDIRECT(CONCATENATE(VLOOKUP(AI$39,IND_REFERENCE,2,FALSE),VLOOKUP(AI$39,IND_REFERENCE,3,FALSE))),0,1) -> ASME B16.34 (2017) Group 2.1 | V4: =INDEX(INDIRECT(CONCATENATE(VLOOKUP(AI$39,IND_REFERENCE,2,FALSE),VLOOKUP(AI$39,IND_REFERENCE,3,FALSE))),0,2) -> Notes | AC4: 2019-06-10 | AD4: 00 | AE4: Initial release
Q5: Castings | V5: 0 | Z5: =IF(OR(Q5="Castings",Q5="Forgings",LEFT(Q5,3)="Bar",Q5="Plates"),1,0) -> 1 | AC5: 2019-06-24 | AD5: 01 | AE5: Adjusted Materials table so 'Notes' column would not cover up and material names.
Q6: A351 Gr. CF3 | V6: up to 800°F/427°C | Z6: =IF(OR(Q6="Castings",Q6="Forgings",LEFT(Q6,3)="Bar",Q6="Plates"),1,0) -> 0 | AD6: 01 | AE6: Relocated PClassInput cell to avoid accidental user override.
C7: SELECT PRESSURE CLASS | Q7: A351 Gr. CF8, CF10 | V7: 0 | Z7: 0
E8: =IF(ISERROR(SEARCH("B16.34",AI39)),1,0) -> 0 | Q8: Forgings | V8: 0 | Z8: 1
Q9: A182 Gr. F304, F304H | V9: 0 | Z9: 0
C10: SELECT CALCULATION TYPE | Q10: Bar | V10: 0 | Z10: 1
Q11: A182 Gr. F304, F304H | V11: 0 | Z11: 0
Q12: A479 Gr. 304, 304H | V12: 0 | Z12: 0
Q13: Plates | V13: 0 | Z13: 1
Q14: A240 Gr. 304, 304H | V14: 0 | Z14: 0
Q15: 0 | V15: 0 | Z15: 0
G16: =IF(AI51=TRUE,"ENTER PRESSURE --> ","ENTER TEMPERATURE--> ") -> ENTER TEMPERATURE--> | H16: 200 | I16: =IF(AI51=TRUE,"psig","ºF") -> ºF | Q16: 0 | V16: 0 | Z16: 0
G17: =IF(AI51=TRUE,"MAX RATED TEMPERATURE = ","MAX RATED PRESSURE =") -> MAX RATED PRESSURE = | H17: =IFERROR(IF(AI51=TRUE,IF($H$16=INDEX(INDIRECT("COL_"&$AE$57),1),100,IF($H$16<MIN(INDIRECT("COL_"&$AE$57)),1000,(H16-AD57)/(AD56-AD57)*(AD55-AD54)+AD54)),(H16-MaxPress_LT)/(MaxPress_HT-MaxPress_LT)*(MaxPress_LP-MaxPress_HP)+MaxPress_HP),"") -> 230 | I17: =IF(AI51=TRUE,"ºF","psig") -> psig | Q17: 0 | V17: 0 | Z17: 0
E18: NOTES: | Q18: 0 | V18: 0 | Z18: 0
E19: =IF(AI51=TRUE,"Pressure class","Temp range") -> Temp range | G19: =IF(AI51=TRUE,IF(H16<=MAX(INDIRECT("COL_"&$AE$57)),"OK","Exceeds pressure class"),IF(OR(InterTemp<-20,InterTemp>1000),"Data not available","OK")) -> OK | V19: 0 | Z19: 0
P22: ="PRESSURE/TEMP RATING - "&AI39 -> PRESSURE/TEMP RATING - ASME B16.34 (2017) - Matl Gp. 2.1 (US Units)
Q23: ºF | R23: 1 | S23: =INDEX(INDIRECT(CONCATENATE(VLOOKUP(AI$39,IND_REFERENCE,2,FALSE),VLOOKUP(AI$39,IND_REFERENCE,4,FALSE))),0,1) -> 150 | T23: =INDEX(INDIRECT(CONCATENATE(VLOOKUP(AI$39,IND_REFERENCE,2,FALSE),VLOOKUP(AI$39,IND_REFERENCE,4,FALSE))),0,2) -> 300 | U23: =INDEX(INDIRECT(CONCATENATE(VLOOKUP(AI$39,IND_REFERENCE,2,FALSE),VLOOKUP(AI$39,IND_REFERENCE,4,FALSE))),0,3) -> 600 | V23: =INDEX(INDIRECT(CONCATENATE(VLOOKUP(AI$39,IND_REFERENCE,2,FALSE),VLOOKUP(AI$39,IND_REFERENCE,4,FALSE))),0,4) -> 900 | W23: =INDEX(INDIRECT(CONCATENATE(VLOOKUP(AI$39,IND_REFERENCE,2,FALSE),VLOOKUP(AI$39,IND_REFERENCE,4,FALSE))),0,5) -> 1500 | X23: =INDEX(INDIRECT(CONCATENATE(VLOOKUP(AI$39,IND_REFERENCE,2,FALSE),VLOOKUP(AI$39,IND_REFERENCE,4,FALSE))),0,6) -> 2500 | Y23: =INDEX(INDIRECT(CONCATENATE(VLOOKUP(AI$39,IND_REFERENCE,2,FALSE),VLOOKUP(AI$39,IND_REFERENCE,4,FALSE))),0,7) -> 4500
P24: 1 | Q24: -20 | R24: 2 | S24: 275 | T24: 720 | U24: 1440 | V24: 2160 | W24: 3600 | X24: 6000 | Y24: 10800
P25: 2 | Q25: 100 | R25: 3 | S25: 275 | T25: 720 | U25: 1440 | V25: 2160 | W25: 3600 | X25: 6000 | Y25: 10800
P26: 3 | Q26: 200 | R26: 4 | S26: 230 | T26: 600 | U26: 1200 | V26: 1800 | W26: 3000 | X26: 5000 | Y26: 9000
P27: 4 | Q27: 300 | R27: 5 | S27: 205 | T27: 540 | U27: 1075 | V27: 1615 | W27: 2690 | X27: 4480 | Y27: 8065
P28: 5 | Q28: 400 | R28: 6 | S28: 190 | T28: 495 | U28: 995 | V28: 1490 | W28: 2485 | X28: 4140 | Y28: 7450
P29: 6 | Q29: 500 | R29: 7 | S29: 170 | T29: 465 | U29: 930 | V29: 1395 | W29: 2330 | X29: 3880 | Y29: 6985
P30: 7 | Q30: 600 | R30: 8 | S30: 140 | T30: 440 | U30: 885 | V30: 1325 | W30: 2210 | X30: 3680 | Y30: 6625
P31: 8 | Q31: 650 | R31: 9 | S31: 125 | T31: 430 | U31: 865 | V31: 1295 | W31: 2160 | X31: 3600 | Y31: 6480
P32: 9 | Q32: 700 | R32: 10 | S32: 110 | T32: 420 | U32: 845 | V32: 1265 | W32: 2110 | X32: 3520 | Y32: 6335
P33: 10 | Q33: 750 | R33: 11 | S33: 95 | T33: 415 | U33: 825 | V33: 1240 | W33: 2065 | X33: 3440 | Y33: 6190
D34: 9955 International Blvd. | Cincinnati, Ohio 45246 | P34: 11 | Q34: 800 | R34: 12 | S34: 80 | T34: 405 | U34: 810 | V34: 1215 | W34: 2030 | X34: 3380 | Y34: 6085
D35: Phone: 513.247.5465 | Fax: 513.247.5462 | www.atcontrols.com | P35: 12 | Q35: 850 | R35: 13 | S35: 65 | T35: 395 | U35: 790 | V35: 1190 | W35: 1980 | X35: 3300 | Y35: 5940
P36: 13 | Q36: 900 | R36: 14 | S36: 50 | T36: 390 | U36: 780 | V36: 1165 | W36: 1945 | X36: 3240 | Y36: 5830
P37: 14 | Q37: 950 | R37: 15 | S37: 35 | T37: 380 | U37: 765 | V37: 1145 | W37: 1910 | X37: 3180 | Y37: 5725
P38: 15 | Q38: 1000 | R38: 16 | S38: 20 | T38: 355 | U38: 710 | V38: 1065 | W38: 1770 | X38: 2950 | Y38: 5315
AI39: ASME B16.34 (2017) - Matl Gp. 2.1 (US Units)
Z41: GGRIF-CAF-0001 rev-01 (28-Jun-19)
AI42: PRESSURE CLASS SELECTION
AI43: 150
AC46: PRESSURE & TEMPERATURE CALCULATIONS | AI46: Find Max Rated Pressure (known temperature) | AJ46: LIST BOX OPTION
AC47: FIND MAX PRESSURE | AJ47: Find Max Rated Temperature (known pressure)
AC48: TempL | AD48: =VLOOKUP(H16,TEMP_RNG,1) -> 200 | AF48: MaxPress_LT value | AJ48: Find Max Rated Pressure (known temperature)
AC49: TempH | AD49: =INDEX($Q$23:$Q$38,VLOOKUP(AD48,TEMP_RNG,2,0)+1) -> 300 | AF49: MaxPress_HT value
AC50: PressH | AD50: =HLOOKUP(PClassInput,$Q$23:$Y$38,VLOOKUP(AD48,TEMP_RNG,2)) -> 230 | AF50: MaxPress_HP value
AC51: PressL | AD51: =HLOOKUP(PClassInput,$Q$23:$Y$38,VLOOKUP(AD49,TEMP_RNG,2)) -> 205 | AF51: MaxPress_LP value | AI51: FALSE | AJ51: Find Max Rated Temperature (known pressure)
AC53: FIND MAX TEMP
AC54: TempH | AD54: =INDEX($Q$24:$Q$38,MATCH(AD57,INDIRECT(CONCATENATE("COL_",$AE$57)),0)+IF(AE54="Y",1,0)) -> 400 | AE54: =IF($H$16=HLOOKUP(PClassInput,RATINGS_TABLE,2,FALSE),"Y",0) -> 0 | AF54: MaxTemp_HT value
AC55: TempL | AD55: =INDEX($Q$24:$Q$38,MATCH(AD56,INDIRECT(CONCATENATE("COL_",$AE$57)),0)+IF(AE55="Y",1,0)) -> 300 | AE55: =IF(AND($H$16>HLOOKUP(PClassInput,RATINGS_TABLE,4,FALSE),$H$16<HLOOKUP(PClassInput,RATINGS_TABLE,2,FALSE)),"Y",0) -> 0 | AF55: MaxTemp_LT value
AC56: PressH | AD56: =INDEX(INDIRECT(CONCATENATE("COL_",$AE$57)),MATCH($H$16,INDIRECT(CONCATENATE("COL_",$AE$57)),-1)) -> 205 | AF56: MaxTemp_HP value
AC57: PressL | AD57: =INDEX(INDIRECT(CONCATENATE("COL_",$AE$57)),MATCH($H$16,INDIRECT(CONCATENATE("COL_",$AE$57)),-1)+1) -> 190 | AE57: =MATCH(PClassInput,$S$23:$Y$23,0) -> 1 | AF57: MaxTemp_LP value
AC60: FLANGE RATINGS | AJ60: INDUSTRY STANDARDS & CALL REFERENCE | AK60: SHEET | AL60: MATERIALS | AM60: RATINGS
AC61: B16.5 | AD61: B16.34 | AE61: USED | AJ61: ASME B16.34 (2017) - Matl Gp. 1.1 (US Units) | AK61: 'ASME B16.34'! | AL61: $B$4:C$19 | AM61: $F$4:$L$19
AC62: 150 | AD62: 150 | AE62: =IF(ISERROR(SEARCH("B16.34",$AI$39)),$AC62,$AD62) -> 150 | AJ62: ASME B16.34 (2017) - Matl Gp. 1.2 (US Units) | AK62: 'ASME B16.34'! | AL62: $B$21:$C$36 | AM62: $F$21:$L$36
AC63: 300 | AD63: 300 | AE63: =IF(ISERROR(SEARCH("B16.34",$AI$39)),$AC63,$AD63) -> 300 | AJ63: ASME B16.34 (2017) - Matl Gp. 1.3 (US Units) | AK63: 'ASME B16.34'! | AL63: $B$38:$C$53 | AM63: $F$38:$L$53
AC64: 400 | AD64: 600 | AE64: =IF(ISERROR(SEARCH("B16.34",$AI$39)),$AC64,$AD64) -> 600 | AJ64: ASME B16.34 (2017) - Matl Gp. 2.1 (US Units) | AK64: 'ASME B16.34'! | AL64: $P$4:$Q$19 | AM64: $T$4:$Z$19
AC65: 600 | AD65: 900 | AE65: =IF(ISERROR(SEARCH("B16.34",$AI$39)),$AC65,$AD65) -> 900 | AJ65: ASME B16.34 (2017) - Matl Gp. 2.2 (US Units) | AK65: 'ASME B16.34'! | AL65: $P$21:$Q$36 | AM65: $T$21:$Z$36
AC66: 900 | AD66: 1500 | AE66: =IF(ISERROR(SEARCH("B16.34",$AI$39)),$AC66,$AD66) -> 1500 | AJ66: ASME B16.34 (2017) - Matl Gp. 2.3 (US Units) | AK66: 'ASME B16.34'! | AL66: $P$38:$Q$53 | AM66: $T$38:$Z$53
AC67: 1500 | AD67: 2500 | AE67: =IF(ISERROR(SEARCH("B16.34",$AI$39)),$AC67,$AD67) -> 2500 | AJ67: ----------------------------------------------------------
AC68: 2500 | AD68: 4500 | AE68: =IF(ISERROR(SEARCH("B16.34",$AI$39)),$AC68,$AD68) -> 4500 | AJ68: API 6D (2014) - Matl Gp 1.1 (US Units) | AK68: 'API 6D'! | AL68: $B$4:C$19 | AM68: $F$4:$L$19
AJ69: API 6D (2014) - Matl Gp. 1.2 (US Units) | AK69: 'API 6D'! | AL69: $B$21:$C$36 | AM69: $F$21:$L$36
AJ70: API 6D (2014) - Matl Gp. 1.3 (US Units) | AK70: 'API 6D'! | AL70: $B$38:$C$53 | AM70: $F$38:$L$53
AJ71: API 6D (2014) - Matl Gp 2.1 (US Units) | AK71: 'API 6D'! | AL71: $P$4:$Q$19 | AM71: $T$4:$Z$19
AJ72: API 6D (2014) - Matl Gp 2.2 (US Units) | AK72: 'API 6D'! | AL72: $P$21:$Q$36 | AM72: $T$21:$Z$36
AJ73: API 6D (2014) - Matl Gp 2.3 (US Units) | AK73: 'API 6D'! | AL73: $P$38:$Q$53 | AM73: $T$38:$Z$53
AJ74: ----------------------------------------------------------
AJ75: ASME B16.5 (2017) - Matl Gp. 1.1 (US Units) | AK75: 'ASME B16.5'! | AL75: $B$4:C$19 | AM75: $F$4:$L$19
AJ76: ASME B16.5 (2017) - Matl Gp. 1.2 (US Units) | AK76: 'ASME B16.5'! | AL76: $B$21:$C$36 | AM76: $F$21:$L$36
AJ77: ASME B16.5 (2017) - Matl Gp. 1.3 (US Units) | AK77: 'ASME B16.5'! | AL77: $B$38:$C$53 | AM77: $F$38:$L$53
AJ78: ASME B16.5 (2017) - Matl Gp. 2.1 (US Units) | AK78: 'ASME B16.5'! | AL78: $P$4:$Q$19 | AM78: $T$4:$Z$19
AJ79: ASME B16.5 (2017) - Matl Gp. 2.2 (US Units) | AK79: 'ASME B16.5'! | AL79: $P$21:$Q$36 | AM79: $T$21:$Z$36
AJ80: ASME B16.5 (2017) - Matl Gp. 2.3 (US Units) | AK80: 'ASME B16.5'! | AL80: $P$38:$Q$53 | AM80: $T$38:$Z$53

Sheet ASME B16.34 (hidden)
A1: ASME B16.34 (2017)
B4: ASME B16.34 (2017) Group 1.1 | C4: Notes | E4: ºF | F4: 150 | G4: 300 | H4: 600 | I4: 900 | J4: 1500 | K4: 2500 | L4: 4500 | P4: ASME B16.34 (2017) Group 2.1 | Q4: Notes | S4: ºF | T4: 150 | U4: 300 | V4: 600 | W4: 900 | X4: 1500 | Y4: 2500 | Z4: 4500
B5: Castings | E5: -20 | F5: 285 | G5: 740 | H5: 1480 | I5: 2220 | J5: 3705 | K5: 6170 | L5: 11110 | P5: Castings | S5: -20 | T5: 275 | U5: 720 | V5: 1440 | W5: 2160 | X5: 3600 | Y5: 6000 | Z5: 10800
B6: A216 WCB | C6: up to 800°F/427°C | E6: 100 | F6: 285 | G6: 740 | H6: 1480 | I6: 2220 | J6: 3705 | K6: 6170 | L6: 11110 | P6: A351 Gr. CF3 | Q6: up to 800°F/427°C | S6: 100 | T6: 275 | U6: 720 | V6: 1440 | W6: 2160 | X6: 3600 | Y6: 6000 | Z6: 10800
B7: Forgings | E7: 200 | F7: 260 | G7: 680 | H7: 1360 | I7: 2035 | J7: 3395 | K7: 5655 | L7: 10185 | P7: A351 Gr. CF8, CF10 | S7: 200 | T7: 230 | U7: 600 | V7: 1200 | W7: 1800 | X7: 3000 | Y7: 5000 | Z7: 9000
B8: A105 | C8: up to 800°F/427°C | E8: 300 | F8: 230 | G8: 655 | H8: 1310 | I8: 1965 | J8: 3270 | K8: 5450 | L8: 9815 | P8: Forgings | S8: 300 | T8: 205 | U8: 540 | V8: 1075 | W8: 1615 | X8: 2690 | Y8: 4480 | Z8: 8065
B9: A350 Gr. LF2 | C9: up to 800°F/427°C | E9: 400 | F9: 200 | G9: 635 | H9: 1265 | I9: 1900 | J9: 3170 | K9: 5280 | L9: 9505 | P9: A182 Gr. F304, F304H | S9: 400 | T9: 190 | U9: 495 | V9: 995 | W9: 1490 | X9: 2485 | Y9: 4140 | Z9: 7450
B10: A350 Gr. LF3 | C10: up to 650°F/343°C | E10: 500 | F10: 170 | G10: 605 | H10: 1205 | I10: 1810 | J10: 3015 | K10: 5025 | L10: 9040 | P10: Bar | S10: 500 | T10: 170 | U10: 465 | V10: 930 | W10: 1395 | X10: 2330 | Y10: 3880 | Z10: 6985
B11: A350 Gr. LF6 Cl. 1 | C11: up to 500°F/260°C | E11: 600 | F11: 140 | G11: 570 | H11: 1135 | I11: 1705 | J11: 2840 | K11: 4730 | L11: 8515 | P11: A182 Gr. F304, F304H | S11: 600 | T11: 140 | U11: 440 | V11: 885 | W11: 1325 | X11: 2210 | Y11: 3680 | Z11: 6625
B12: Bar | E12: 650 | F12: 125 | G12: 550 | H12: 1100 | I12: 1650 | J12: 2745 | K12: 4575 | L12: 8240 | P12: A479 Gr. 304, 304H | S12: 650 | T12: 125 | U12: 430 | V12: 865 | W12: 1295 | X12: 2160 | Y12: 3600 | Z12: 6480
B13: A105 | C13: up to 800°F/427°C | E13: 700 | F13: 110 | G13: 530 | H13: 1060 | I13: 1590 | J13: 2655 | K13: 4425 | L13: 7960 | P13: Plates | S13: 700 | T13: 110 | U13: 420 | V13: 845 | W13: 1265 | X13: 2110 | Y13: 3520 | Z13: 6335
B14: A350 Gr. LF2, LF3, LF6 Cl. 1 | C14: up to 800°F/427°C | E14: 750 | F14: 95 | G14: 505 | H14: 1015 | I14: 1520 | J14: 2535 | K14: 4230 | L14: 7610 | P14: A240 Gr. 304, 304H | S14: 750 | T14: 95 | U14: 415 | V14: 825 | W14: 1240 | X14: 2065 | Y14: 3440 | Z14: 6190
B15: A696 Gr. C | C15: up to 700°F/371°C | E15: 800 | F15: 80 | G15: 410 | H15: 825 | I15: 1235 | J15: 2055 | K15: 3430 | L15: 6170 | S15: 800 | T15: 80 | U15: 405 | V15: 810 | W15: 1215 | X15: 2030 | Y15: 3380 | Z15: 6085
B16: Plates | E16: 850 | F16: 65 | G16: 320 | H16: 640 | I16: 955 | J16: 1595 | K16: 2655 | L16: 4785 | S16: 850 | T16: 65 | U16: 395 | V16: 790 | W16: 1190 | X16: 1980 | Y16: 3300 | Z16: 5940
B17: A515 Gr. 70 | C17: up to 800°F/427°C | E17: 900 | F17: 50 | G17: 230 | H17: 460 | I17: 690 | J17: 1150 | K17: 1915 | L17: 3455 | S17: 900 | T17: 50 | U17: 390 | V17: 780 | W17: 1165 | X17: 1945 | Y17: 3240 | Z17: 5830
B18: A516 Gr. 70 | C18: up to 800°F/427°C | E18: 950 | F18: 35 | G18: 135 | H18: 275 | I18: 410 | J18: 685 | K18: 1145 | L18: 2055 | S18: 950 | T18: 35 | U18: 380 | V18: 765 | W18: 1145 | X18: 1910 | Y18: 3180 | Z18: 5725
B19: A537 Gr. Cl. 1 | C19: up to 700°F/371°C | E19: 1000 | F19: 20 | G19: 85 | H19: 170 | I19: 255 | J19: 430 | K19: 715 | L19: 1285 | S19: 1000 | T19: 20 | U19: 355 | V19: 710 | W19: 1065 | X19: 1770 | Y19: 2950 | Z19: 5315
B21: ASME B16.34 (2017) Group 1.2 | C21: Notes | E21: ºF | F21: 150 | G21: 300 | H21: 600 | I21: 900 | J21: 1500 | K21: 2500 | L21: 4500 | P21: ASME B16.34 (2017) Group 2.2 | Q21: Notes | S21: ºF | T21: 150 | U21: 300 | V21: 600 | W21: 900 | X21: 1500 | Y21: 2500 | Z21: 4500
B22: Castings | E22: -20 | F22: 290 | G22: 750 | H22: 1500 | I22: 2250 | J22: 3750 | K22: 6250 | L22: 11250 | P22: Castings | S22: -20 | T22: 275 | U22: 720 | V22: 1440 | W22: 2160 | X22: 3600 | Y22: 6000 | Z22: 10800
B23: A352 Gr. LC2, LC3, LCC | C23: up to 650°F/343°C | E23: 100 | F23: 290 | G23: 750 | H23: 1500 | I23: 2250 | J23: 3750 | K23: 6250 | L23: 11250 | P23: A351 Gr. CF3M | Q23: up to 800°F/427°C | S23: 100 | T23: 275 | U23: 720 | V23: 1440 | W23: 2160 | X23: 3600 | Y23: 6000 | Z23: 10800
B24: A216 Gr. WCC | C24: up to 800°F/427°C | E24: 200 | F24: 260 | G24: 750 | H24: 1500 | I24: 2250 | J24: 3750 | K24: 6250 | L24: 11250 | P24: A351 Gr. CF8M, CF10M, CG3M, CG8M | S24: 200 | T24: 235 | U24: 620 | V24: 1240 | W24: 1860 | X24: 3095 | Y24: 5160 | Z24: 9290
B25: Forgings | E25: 300 | F25: 230 | G25: 730 | H25: 1455 | I25: 2185 | J25: 3640 | K25: 6070 | L25: 10925 | P25: A351 Gr. CF3A, CF8A | Q25: up to 650°F/343°C | S25: 300 | T25: 215 | U25: 560 | V25: 1120 | W25: 1680 | X25: 2795 | Y25: 4660 | Z25: 8390
B26: A350 Gr. LF6 Cl. 2 | C26: up to 500°F/260°C | E26: 400 | F26: 200 | G26: 705 | H26: 1405 | I26: 2110 | J26: 3520 | K26: 5865 | L26: 10555 | P26: Forgings | S26: 400 | T26: 195 | U26: 515 | V26: 1025 | W26: 1540 | X26: 2570 | Y26: 4280 | Z26: 7705
B27: Bar | E27: 500 | F27: 170 | G27: 665 | H27: 1330 | I27: 1995 | J27: 3325 | K27: 5540 | L27: 9965 | P27: A182 Gr. F316, F316H | S27: 500 | T27: 170 | U27: 480 | V27: 955 | W27: 1435 | X27: 2390 | Y27: 3980 | Z27: 7165
B28: A350 Gr. LF6 Cl. 2 | E28: 600 | F28: 140 | G28: 605 | H28: 1210 | I28: 1815 | J28: 3025 | K28: 5040 | L28: 9070 | P28: A182 Gr. F317 | S28: 600 | T28: 140 | U28: 450 | V28: 900 | W28: 1355 | X28: 2255 | Y28: 3760 | Z28: 6770
B29: Plates | E29: 650 | F29: 125 | G29: 590 | H29: 1175 | I29: 1765 | J29: 2940 | K29: 4905 | L29: 8825 | P29: Bar | S29: 650 | T29: 125 | U29: 440 | V29: 885 | W29: 1325 | X29: 2210 | Y29: 3680 | Z29: 6625
B30: A203 Gr. B, E | C30: up to 800°F/427°C | E30: 700 | F30: 110 | G30: 555 | H30: 1110 | I30: 1665 | J30: 2775 | K30: 4630 | L30: 8330 | P30: A182 Gr. F316, F316H | S30: 700 | T30: 110 | U30: 435 | V30: 870 | W30: 1305 | X30: 2170 | Y30: 3620 | Z30: 6515
E31: 750 | F31: 95 | G31: 505 | H31: 1015 | I31: 1520 | J31: 2535 | K31: 4230 | L31: 7610 | P31: A479 Gr. 316, 316H | S31: 750 | T31: 95 | U31: 425 | V31: 855 | W31: 1280 | X31: 2135 | Y31: 3560 | Z31: 6410
E32: 800 | F32: 80 | G32: 410 | H32: 825 | I32: 1235 | J32: 2055 | K32: 3430 | L32: 6170 | P32: Plates | S32: 800 | T32: 80 | U32: 420 | V32: 845 | W32: 1265 | X32: 2110 | Y32: 3520 | Z32: 6335
E33: 850 | F33: 65 | G33: 320 | H33: 640 | I33: 955 | J33: 1595 | K33: 2655 | L33: 4785 | P33: A240 Gr. 316, 316H | S33: 850 | T33: 65 | U33: 420 | V33: 835 | W33: 1255 | X33: 2090 | Y33: 3480 | Z33: 6265
E34: 900 | F34: 50 | G34: 225 | H34: 445 | I34: 670 | J34: 1115 | K34: 1855 | L34: 3345 | P34: A240 Gr. 317 | S34: 900 | T34: 50 | U34: 415 | V34: 830 | W34: 1245 | X34: 2075 | Y34: 3460 | Z34: 6230
E35: 950 | F35: 35 | G35: 135 | H35: 275 | I35: 410 | J35: 685 | K35: 1145 | L35: 2055 | S35: 950 | T35: 35 | U35: 385 | V35: 775 | W35: 1160 | X35: 1930 | Y35: 3220 | Z35: 5795
E36: 1000 | F36: 20 | G36: 85 | H36: 170 | I36: 255 | J36: 430 | K36: 715 | L36: 1285 | S36: 1000 | T36: 20 | U36: 365 | V36: 725 | W36: 1090 | X36: 1820 | Y36: 3030 | Z36: 5450
B38: ASME B16.34 (2017) Group 1.3 | C38: Notes | E38: ºF | F38: 150 | G38: 300 | H38: 600 | I38: 900 | J38: 1500 | K38: 2500 | L38: 4500 | P38: ASME B16.34 (2017) Group 2.3 | Q38: Notes | S38: ºF | T38: 150 | U38: 300 | V38: 600 | W38: 900 | X38: 1500 | Y38: 2500 | Z38: 4500
B39: Castings | E39: -20 | F39: 265 | G39: 695 | H39: 1395 | I39: 2090 | J39: 3480 | K39: 5805 | L39: 10445 | P39: Forgings | S39: -20 | T39: 230 | U39: 600 | V39: 1200 | W39: 1800 | X39: 3000 | Y39: 5000 | Z39: 9000
B40: A352 Gr. LC1, LCB | C40: up to 650°F/343°C | E40: 100 | F40: 265 | G40: 695 | H40: 1395 | I40: 2090 | J40: 3480 | K40: 5805 | L40: 10445 | P40: A182 Gr. 304L | Q40: up to 800°F/427°C | S40: 100 | T40: 230 | U40: 600 | V40: 1200 | W40: 1800 | X40: 3000 | Y40: 5000 | Z40: 9000
B41: A217 WC1 | C41: up to 875°F/468°C | E41: 200 | F41: 255 | G41: 660 | H41: 1320 | I41: 1980 | J41: 3300 | K41: 5505 | L41: 9905 | P41: A182 Gr. F316L | S41: 200 | T41: 195 | U41: 510 | V41: 1020 | W41: 1535 | X41: 2555 | Y41: 4260 | Z41: 7670
B42: Bar | E42: 300 | F42: 230 | G42: 640 | H42: 1275 | I42: 1915 | J42: 3190 | K42: 5315 | L42: 9565 | P42: Bar | S42: 300 | T42: 175 | U42: 455 | V42: 910 | W42: 1370 | X42: 2280 | Y42: 3800 | Z42: 6840
B43: A675 Gr. 70 | C43: up to 800°F/427°C | E43: 400 | F43: 200 | G43: 615 | H43: 1230 | I43: 1845 | J43: 3075 | K43: 5125 | L43: 9225 | P43: A182 Gr. F304L | Q43: up to 800°F/427°C | S43: 400 | T43: 160 | U43: 420 | V43: 840 | W43: 1260 | X43: 2100 | Y43: 3500 | Z43: 6300
B44: Plates | E44: 500 | F44: 170 | G44: 585 | H44: 1175 | I44: 1760 | J44: 2930 | K44: 4885 | L44: 8795 | P44: A182 Gr. F316L | S44: 500 | T44: 150 | U44: 395 | V44: 785 | W44: 1180 | X44: 1970 | Y44: 3280 | Z44: 5905
B45: A515 Gr. 65 | C45: up to 800°F/427°C | E45: 600 | F45: 140 | G45: 550 | H45: 1105 | I45: 1655 | J45: 2755 | K45: 4595 | L45: 8270 | P45: A479 Gr. 304L | Q45: up to 800°F/427°C | S45: 600 | T45: 140 | U45: 370 | V45: 745 | W45: 1115 | X45: 1860 | Y45: 3100 | Z45: 5580
B46: A203 Gr. A, D | C46: up to 800°F/427°C | E46: 650 | F46: 125 | G46: 535 | H46: 1065 | I46: 1600 | J46: 2665 | K46: 4440 | L46: 7990 | P46: A479 Gr. 316L | S46: 650 | T46: 125 | U46: 365 | V46: 730 | W46: 1095 | X46: 1825 | Y46: 3040 | Z46: 5470
B47: A516 Gr. 65 | C47: up to 800°F/427°C | E47: 700 | F47: 110 | G47: 510 | H47: 1025 | I47: 1535 | J47: 2560 | K47: 4270 | L47: 7685 | P47: A182 Gr. F317L | S47: 700 | T47: 110 | U47: 360 | V47: 720 | W47: 1080 | X47: 1800 | Y47: 3000 | Z47: 5400
E48: 750 | F48: 95 | G48: 475 | H48: 955 | I48: 1430 | J48: 2385 | K48: 3970 | L48: 7150 | P48: Plates | S48: 750 | T48: 110 | U48: 355 | V48: 705 | W48: 1060 | X48: 1765 | Y48: 2940 | Z48: 5290
E49: 800 | F49: 80 | G49: 390 | H49: 780 | I49: 1175 | J49: 1955 | K49: 3255 | L49: 5865 | P49: A240 Gr. 304L | Q49: up to 800°F/427°C | S49: 800 | T49: 80 | U49: 345 | V49: 690 | W49: 1035 | X49: 1730 | Y49: 2880 | Z49: 5185
E50: 850 | F50: 65 | G50: 300 | H50: 595 | I50: 895 | J50: 1490 | K50: 2485 | L50: 4475 | P50: A240 Gr. 316L | S50: 850 | T50: 65 | U50: 340 | V50: 675 | W50: 1015 | X50: 1690 | Y50: 2820 | Z50: 5075
E51: 900 | F51: 50 | G51: 200 | H51: 405 | I51: 605 | J51: 1010 | K51: 1685 | L51: 3035 | S51: 900 | T51: … | U51: … | V51: … | W51: … | X51: … | Y51: … | Z51: …
E52: 950 | F52: 35 | G52: 135 | H52: 275 | I52: 410 | J52: 685 | K52: 1145 | L52: 2055 | S52: 950 | T52: … | U52: … | V52: … | W52: … | X52: … | Y52: … | Z52: …
E53: 1000 | F53: 20 | G53: 85 | H53: 170 | I53: 255 | J53: 430 | K53: 715 | L53: 1285 | S53: 1000 | T53: … | U53: … | V53: … | W53: … | X53: … | Y53: … | Z53: …

Sheet API 6D (hidden)
A1: API 6D (2014) ADD. 2
B4: API 6D (2014) Group 1.1 | C4: Notes | E4: ºF | F4: 150 | G4: 300 | H4: 400 | I4: 600 | J4: 900 | K4: 1500 | L4: 2500 | P4: API 6D (2014) Group 2.1 | Q4: Notes | S4: ºF | T4: 150 | U4: 300 | V4: 400 | W4: 600 | X4: 900 | Y4: 1500 | Z4: 2500
B5: Castings | E5: -20 | F5: ='ASME B16.34'!F5 -> 285 | G5: ='ASME B16.34'!G5 -> 740 | H5: ='ASME B16.5'!H5 -> 985 | I5: ='ASME B16.34'!H5 -> 1480 | J5: ='ASME B16.34'!I5 -> 2220 | K5: ='ASME B16.34'!J5 -> 3705 | L5: ='ASME B16.34'!K5 -> 6170 | P5: Castings | S5: -20 | T5: ='ASME B16.34'!T5 -> 275 | U5: ='ASME B16.34'!U5 -> 720 | V5: ='ASME B16.5'!V5 -> 960 | W5: ='ASME B16.34'!V5 -> 1440 | X5: ='ASME B16.34'!W5 -> 2160 | Y5: ='ASME B16.34'!X5 -> 3600 | Z5: ='ASME B16.34'!Y5 -> 6000
B6: A 216 WCB | C6: up to 800°F/427°C | E6: 100 | F6: ='ASME B16.34'!F6 -> 285 | G6: ='ASME B16.34'!G6 -> 740 | H6: ='ASME B16.5'!H6 -> 985 | I6: ='ASME B16.34'!H6 -> 1480 | J6: ='ASME B16.34'!I6 -> 2220 | K6: ='ASME B16.34'!J6 -> 3705 | L6: ='ASME B16.34'!K6 -> 6170 | P6: A 351 Gr. CF3 | Q6: up to 800°F/427°C | S6: 100 | T6: ='ASME B16.34'!T6 -> 275 | U6: ='ASME B16.34'!U6 -> 720 | V6: ='ASME B16.5'!V6 -> 960 | W6: ='ASME B16.34'!V6 -> 1440 | X6: ='ASME B16.34'!W6 -> 2160 | Y6: ='ASME B16.34'!X6 -> 3600 | Z6: ='ASME B16.34'!Y6 -> 6000
B7: Forgings | E7: 200 | F7: ='ASME B16.34'!F7 -> 260 | G7: ='ASME B16.34'!G7 -> 680 | H7: ='ASME B16.5'!H7 -> 905 | I7: ='ASME B16.34'!H7 -> 1360 | J7: ='ASME B16.34'!I7 -> 2035 | K7: ='ASME B16.34'!J7 -> 3395 | L7: ='ASME B16.34'!K7 -> 5655 | P7: A 351 Gr. CF8 | S7: 200 | T7: ='ASME B16.34'!T7 -> 230 | U7: ='ASME B16.34'!U7 -> 600 | V7: ='ASME B16.5'!V7 -> 800 | W7: ='ASME B16.34'!V7 -> 1200 | X7: ='ASME B16.34'!W7 -> 1800 | Y7: ='ASME B16.34'!X7 -> 3000 | Z7: ='ASME B16.34'!Y7 -> 5000
B8: A 105 | C8: up to 800°F/427°C | E8: 300 | F8: ='ASME B16.34'!F8 -> 230 | G8: ='ASME B16.34'!G8 -> 655 | H8: ='ASME B16.5'!H8 -> 870 | I8: ='ASME B16.34'!H8 -> 1310 | J8: ='ASME B16.34'!I8 -> 1965 | K8: ='ASME B16.34'!J8 -> 3270 | L8: ='ASME B16.34'!K8 -> 5450 | P8: Forgings | S8: 300 | T8: ='ASME B16.34'!T8 -> 205 | U8: ='ASME B16.34'!U8 -> 540 | V8: ='ASME B16.5'!V8 -> 715 | W8: ='ASME B16.34'!V8 -> 1075 | X8: ='ASME B16.34'!W8 -> 1615 | Y8: ='ASME B16.34'!X8 -> 2690 | Z8: ='ASME B16.34'!Y8 -> 4480
B9: A 350 Gr. LF2 | C9: up to 800°F/427°C | E9: 400 | F9: ='ASME B16.34'!F9 -> 200 | G9: ='ASME B16.34'!G9 -> 635 | H9: ='ASME B16.5'!H9 -> 845 | I9: ='ASME B16.34'!H9 -> 1265 | J9: ='ASME B16.34'!I9 -> 1900 | K9: ='ASME B16.34'!J9 -> 3170 | L9: ='ASME B16.34'!K9 -> 5280 | P9: A 182 Gr. F304, F304H | S9: 400 | T9: ='ASME B16.34'!T9 -> 190 | U9: ='ASME B16.34'!U9 -> 495 | V9: ='ASME B16.5'!V9 -> 660 | W9: ='ASME B16.34'!V9 -> 995 | X9: ='ASME B16.34'!W9 -> 1490 | Y9: ='ASME B16.34'!X9 -> 2485 | Z9: ='ASME B16.34'!Y9 -> 4140
B10: A 350 Gr. LF3 | C10: up to 650°F/343°C | E10: 500 | F10: ='ASME B16.34'!F10 -> 170 | G10: ='ASME B16.34'!G10 -> 605 | H10: ='ASME B16.5'!H10 -> 805 | I10: ='ASME B16.34'!H10 -> 1205 | J10: ='ASME B16.34'!I10 -> 1810 | K10: ='ASME B16.34'!J10 -> 3015 | L10: ='ASME B16.34'!K10 -> 5025 | P10: Bar (CL400 not applicable) | S10: 500 | T10: ='ASME B16.34'!T10 -> 170 | U10: ='ASME B16.34'!U10 -> 465 | V10: ='ASME B16.5'!V10 -> 620 | W10: ='ASME B16.34'!V10 -> 930 | X10: ='ASME B16.34'!W10 -> 1395 | Y10: ='ASME B16.34'!X10 -> 2330 | Z10: ='ASME B16.34'!Y10 -> 3880
B11: A 350 Gr. LF6 Cl. 1 | C11: up to 500°F/260°C | E11: 600 | F11: ='ASME B16.34'!F11 -> 140 | G11: ='ASME B16.34'!G11 -> 570 | H11: ='ASME B16.5'!H11 -> 755 | I11: ='ASME B16.34'!H11 -> 1135 | J11: ='ASME B16.34'!I11 -> 1705 | K11: ='ASME B16.34'!J11 -> 2840 | L11: ='ASME B16.34'!K11 -> 4730 | P11: A 182 Gr. F304, F304H | S11: 600 | T11: ='ASME B16.34'!T11 -> 140 | U11: ='ASME B16.34'!U11 -> 440 | V11: ='ASME B16.5'!V11 -> 590 | W11: ='ASME B16.34'!V11 -> 885 | X11: ='ASME B16.34'!W11 -> 1325 | Y11: ='ASME B16.34'!X11 -> 2210 | Z11: ='ASME B16.34'!Y11 -> 3680
B12: Bar (CL400 not applicable) | E12: 650 | F12: ='ASME B16.34'!F12 -> 125 | G12: ='ASME B16.34'!G12 -> 550 | H12: ='ASME B16.5'!H12 -> 730 | I12: ='ASME B16.34'!H12 -> 1100 | J12: ='ASME B16.34'!I12 -> 1650 | K12: ='ASME B16.34'!J12 -> 2745 | L12: ='ASME B16.34'!K12 -> 4575 | P12: A 479 Gr. 304, 304H | S12: 650 | T12: ='ASME B16.34'!T12 -> 125 | U12: ='ASME B16.34'!U12 -> 430 | V12: ='ASME B16.5'!V12 -> 575 | W12: ='ASME B16.34'!V12 -> 865 | X12: ='ASME B16.34'!W12 -> 1295 | Y12: ='ASME B16.34'!X12 -> 2160 | Z12: ='ASME B16.34'!Y12 -> 3600
B13: A 105 | C13: up to 800°F/427°C | E13: 700 | F13: ='ASME B16.34'!F13 -> 110 | G13: ='ASME B16.34'!G13 -> 530 | H13: ='ASME B16.5'!H13 -> 710 | I13: ='ASME B16.34'!H13 -> 1060 | J13: ='ASME B16.34'!I13 -> 1590 | K13: ='ASME B16.34'!J13 -> 2655 | L13: ='ASME B16.34'!K13 -> 4425 | P13: Plates | S13: 700 | T13: ='ASME B16.34'!T13 -> 110 | U13: ='ASME B16.34'!U13 -> 420 | V13: ='ASME B16.5'!V13 -> 565 | W13: ='ASME B16.34'!V13 -> 845 | X13: ='ASME B16.34'!W13 -> 1265 | Y13: ='ASME B16.34'!X13 -> 2110 | Z13: ='ASME B16.34'!Y13 -> 3520
B14: A 350 Gr. LF2 | C14: up to 800°F/427°C | E14: 750 | F14: ='ASME B16.34'!F14 -> 95 | G14: ='ASME B16.34'!G14 -> 505 | H14: ='ASME B16.5'!H14 -> 675 | I14: ='ASME B16.34'!H14 -> 1015 | J14: ='ASME B16.34'!I14 -> 1520 | K14: ='ASME B16.34'!J14 -> 2535 | L14: ='ASME B16.34'!K14 -> 4230 | P14: A 240 Gr. 304, 304H | S14: 750 | T14: ='ASME B16.34'!T14 -> 95 | U14: ='ASME B16.34'!U14 -> 415 | V14: ='ASME B16.5'!V14 -> 550 | W14: ='ASME B16.34'!V14 -> 825 | X14: ='ASME B16.34'!W14 -> 1240 | Y14: ='ASME B16.34'!X14 -> 2065 | Z14: ='ASME B16.34'!Y14 -> 3440
B15: A 696 Gr. C | E15: 800 | F15: ='ASME B16.34'!F15 -> 80 | G15: ='ASME B16.34'!G15 -> 410 | H15: ='ASME B16.5'!H15 -> 550 | I15: ='ASME B16.34'!H15 -> 825 | J15: ='ASME B16.34'!I15 -> 1235 | K15: ='ASME B16.34'!J15 -> 2055 | L15: ='ASME B16.34'!K15 -> 3430 | S15: 800 | T15: ='ASME B16.34'!T15 -> 80 | U15: ='ASME B16.34'!U15 -> 405 | V15: ='ASME B16.5'!V15 -> 540 | W15: ='ASME B16.34'!V15 -> 810 | X15: ='ASME B16.34'!W15 -> 1215 | Y15: ='ASME B16.34'!X15 -> 2030 | Z15: ='ASME B16.34'!Y15 -> 3380
E16: 850 | F16: ='ASME B16.34'!F16 -> 65 | G16: ='ASME B16.34'!G16 -> 320 | H16: ='ASME B16.5'!H16 -> 425 | I16: ='ASME B16.34'!H16 -> 640 | J16: ='ASME B16.34'!I16 -> 955 | K16: ='ASME B16.34'!J16 -> 1595 | L16: ='ASME B16.34'!K16 -> 2655 | S16: 850 | T16: ='ASME B16.34'!T16 -> 65 | U16: ='ASME B16.34'!U16 -> 395 | V16: ='ASME B16.5'!V16 -> 530 | W16: ='ASME B16.34'!V16 -> 790 | X16: ='ASME B16.34'!W16 -> 1190 | Y16: ='ASME B16.34'!X16 -> 1980 | Z16: ='ASME B16.34'!Y16 -> 3300
E17: 900 | F17: ='ASME B16.34'!F17 -> 50 | G17: ='ASME B16.34'!G17 -> 230 | H17: ='ASME B16.5'!H17 -> 305 | I17: ='ASME B16.34'!H17 -> 460 | J17: ='ASME B16.34'!I17 -> 690 | K17: ='ASME B16.34'!J17 -> 1150 | L17: ='ASME B16.34'!K17 -> 1915 | S17: 900 | T17: ='ASME B16.34'!T17 -> 50 | U17: ='ASME B16.34'!U17 -> 390 | V17: ='ASME B16.5'!V17 -> 520 | W17: ='ASME B16.34'!V17 -> 780 | X17: ='ASME B16.34'!W17 -> 1165 | Y17: ='ASME B16.34'!X17 -> 1945 | Z17: ='ASME B16.34'!Y17 -> 3240
E18: 950 | F18: ='ASME B16.34'!F18 -> 35 | G18: ='ASME B16.34'!G18 -> 135 | H18: ='ASME B16.5'!H18 -> 185 | I18: ='ASME B16.34'!H18 -> 275 | J18: ='ASME B16.34'!I18 -> 410 | K18: ='ASME B16.34'!J18 -> 685 | L18: ='ASME B16.34'!K18 -> 1145 | S18: 950 | T18: ='ASME B16.34'!T18 -> 35 | U18: ='ASME B16.34'!U18 -> 380 | V18: ='ASME B16.5'!V18 -> 510 | W18: ='ASME B16.34'!V18 -> 765 | X18: ='ASME B16.34'!W18 -> 1145 | Y18: ='ASME B16.34'!X18 -> 1910 | Z18: ='ASME B16.34'!Y18 -> 3180
E19: 1000 | F19: ='ASME B16.34'!F19 -> 20 | G19: ='ASME B16.34'!G19 -> 85 | H19: ='ASME B16.5'!H19 -> 115 | I19: ='ASME B16.34'!H19 -> 170 | J19: ='ASME B16.34'!I19 -> 255 | K19: ='ASME B16.34'!J19 -> 430 | L19: ='ASME B16.34'!K19 -> 715 | S19: 1000 | T19: ='ASME B16.34'!T19 -> 20 | U19: ='ASME B16.34'!U19 -> 355 | V19: ='ASME B16.5'!V19 -> 470 | W19: ='ASME B16.34'!V19 -> 710 | X19: ='ASME B16.34'!W19 -> 1065 | Y19: ='ASME B16.34'!X19 -> 1770 | Z19: ='ASME B16.34'!Y19 -> 2950
B21: API 6D (2014) Group 1.2 | C21: Notes | E21: ºF | F21: 150 | G21: 300 | H21: 400 | I21: 600 | J21: 900 | K21: 1500 | L21: 2500 | P21: API 6D (2014) Group 2.2 | Q21: Notes | S21: ºF | T21: 150 | U21: 300 | V21: 400 | W21: 600 | X21: 900 | Y21: 1500 | Z21: 2500
B22: Castings | E22: -20 | F22: ='ASME B16.34'!F22 -> 290 | G22: ='ASME B16.34'!G22 -> 750 | H22: ='ASME B16.5'!H22 -> 1000 | I22: ='ASME B16.34'!H22 -> 1500 | J22: ='ASME B16.34'!I22 -> 2250 | K22: ='ASME B16.34'!J22 -> 3750 | L22: ='ASME B16.34'!K22 -> 6250 | P22: Castings | S22: -20 | T22: ='ASME B16.34'!T22 -> 275 | U22: ='ASME B16.34'!U22 -> 720 | V22: ='ASME B16.5'!V22 -> 960 | W22: ='ASME B16.34'!V22 -> 1440 | X22: ='ASME B16.34'!W22 -> 2160 | Y22: ='ASME B16.34'!X22 -> 3600 | Z22: ='ASME B16.34'!Y22 -> 6000
B23: A 352 Gr. LC2, LC3, LCC | C23: up to 650°F/343°C | E23: 100 | F23: ='ASME B16.34'!F23 -> 290 | G23: ='ASME B16.34'!G23 -> 750 | H23: ='ASME B16.5'!H23 -> 1000 | I23: ='ASME B16.34'!H23 -> 1500 | J23: ='ASME B16.34'!I23 -> 2250 | K23: ='ASME B16.34'!J23 -> 3750 | L23: ='ASME B16.34'!K23 -> 6250 | P23: A 351 Gr. CF3M, CF8M, CG8M | S23: 100 | T23: ='ASME B16.34'!T23 -> 275 | U23: ='ASME B16.34'!U23 -> 720 | V23: ='ASME B16.5'!V23 -> 960 | W23: ='ASME B16.34'!V23 -> 1440 | X23: ='ASME B16.34'!W23 -> 2160 | Y23: ='ASME B16.34'!X23 -> 3600 | Z23: ='ASME B16.34'!Y23 -> 6000
B24: A 216 Gr. WCC | C24: up to 800°F/427°C | E24: 200 | F24: ='ASME B16.34'!F24 -> 260 | G24: ='ASME B16.34'!G24 -> 750 | H24: ='ASME B16.5'!H24 -> 1000 | I24: ='ASME B16.34'!H24 -> 1500 | J24: ='ASME B16.34'!I24 -> 2250 | K24: ='ASME B16.34'!J24 -> 3750 | L24: ='ASME B16.34'!K24 -> 6250 | P24: A 351 Gr. CF3A | Q24: up to 650°F/343°C; CL400 not applicable | S24: 200 | T24: ='ASME B16.34'!T24 -> 235 | U24: ='ASME B16.34'!U24 -> 620 | V24: ='ASME B16.5'!V24 -> 825 | W24: ='ASME B16.34'!V24 -> 1240 | X24: ='ASME B16.34'!W24 -> 1860 | Y24: ='ASME B16.34'!X24 -> 3095 | Z24: ='ASME B16.34'!Y24 -> 5160
B25: Forgings | E25: 300 | F25: ='ASME B16.34'!F25 -> 230 | G25: ='ASME B16.34'!G25 -> 730 | H25: ='ASME B16.5'!H25 -> 970 | I25: ='ASME B16.34'!H25 -> 1455 | J25: ='ASME B16.34'!I25 -> 2185 | K25: ='ASME B16.34'!J25 -> 3640 | L25: ='ASME B16.34'!K25 -> 6070 | P25: A 351 Gr. CF8A | Q25: up to 650°F/343°C | S25: 300 | T25: ='ASME B16.34'!T25 -> 215 | U25: ='ASME B16.34'!U25 -> 560 | V25: ='ASME B16.5'!V25 -> 745 | W25: ='ASME B16.34'!V25 -> 1120 | X25: ='ASME B16.34'!W25 -> 1680 | Y25: ='ASME B16.34'!X25 -> 2795 | Z25: ='ASME B16.34'!Y25 -> 4660
B26: A 350 Gr. LF6 Cl. 2 | C26: up to 500°F/260°C | E26: 400 | F26: ='ASME B16.34'!F26 -> 200 | G26: ='ASME B16.34'!G26 -> 705 | H26: ='ASME B16.5'!H26 -> 940 | I26: ='ASME B16.34'!H26 -> 1405 | J26: ='ASME B16.34'!I26 -> 2110 | K26: ='ASME B16.34'!J26 -> 3520 | L26: ='ASME B16.34'!K26 -> 5865 | P26: Forgings | S26: 400 | T26: ='ASME B16.34'!T26 -> 195 | U26: ='ASME B16.34'!U26 -> 515 | V26: ='ASME B16.5'!V26 -> 685 | W26: ='ASME B16.34'!V26 -> 1025 | X26: ='ASME B16.34'!W26 -> 1540 | Y26: ='ASME B16.34'!X26 -> 2570 | Z26: ='ASME B16.34'!Y26 -> 4280
B27: Plates | E27: 500 | F27: ='ASME B16.34'!F27 -> 170 | G27: ='ASME B16.34'!G27 -> 665 | H27: ='ASME B16.5'!H27 -> 885 | I27: ='ASME B16.34'!H27 -> 1330 | J27: ='ASME B16.34'!I27 -> 1995 | K27: ='ASME B16.34'!J27 -> 3325 | L27: ='ASME B16.34'!K27 -> 5540 | P27: A 182 Gr. F316, F316H | S27: 500 | T27: ='ASME B16.34'!T27 -> 170 | U27: ='ASME B16.34'!U27 -> 480 | V27: ='ASME B16.5'!V27 -> 635 | W27: ='ASME B16.34'!V27 -> 955 | X27: ='ASME B16.34'!W27 -> 1435 | Y27: ='ASME B16.34'!X27 -> 2390 | Z27: ='ASME B16.34'!Y27 -> 3980
B28: A 203 Gr. B | C28: up to 800°F/427°C | E28: 600 | F28: ='ASME B16.34'!F28 -> 140 | G28: ='ASME B16.34'!G28 -> 605 | H28: ='ASME B16.5'!H28 -> 805 | I28: ='ASME B16.34'!H28 -> 1210 | J28: ='ASME B16.34'!I28 -> 1815 | K28: ='ASME B16.34'!J28 -> 3025 | L28: ='ASME B16.34'!K28 -> 5040 | P28: A 182 Gr. F317 | Q28: CL400 not applicable | S28: 600 | T28: ='ASME B16.34'!T28 -> 140 | U28: ='ASME B16.34'!U28 -> 450 | V28: ='ASME B16.5'!V28 -> 600 | W28: ='ASME B16.34'!V28 -> 900 | X28: ='ASME B16.34'!W28 -> 1355 | Y28: ='ASME B16.34'!X28 -> 2255 | Z28: ='ASME B16.34'!Y28 -> 3760
B29: A 203 Gr. E | C29: up to 800°F/427°C | E29: 650 | F29: ='ASME B16.34'!F29 -> 125 | G29: ='ASME B16.34'!G29 -> 590 | H29: ='ASME B16.5'!H29 -> 785 | I29: ='ASME B16.34'!H29 -> 1175 | J29: ='ASME B16.34'!I29 -> 1765 | K29: ='ASME B16.34'!J29 -> 2940 | L29: ='ASME B16.34'!K29 -> 4905 | P29: A 182 Gr. 317H | S29: 650 | T29: ='ASME B16.34'!T29 -> 125 | U29: ='ASME B16.34'!U29 -> 440 | V29: ='ASME B16.5'!V29 -> 590 | W29: ='ASME B16.34'!V29 -> 885 | X29: ='ASME B16.34'!W29 -> 1325 | Y29: ='ASME B16.34'!X29 -> 2210 | Z29: ='ASME B16.34'!Y29 -> 3680
E30: 700 | F30: ='ASME B16.34'!F30 -> 110 | G30: ='ASME B16.34'!G30 -> 555 | H30: ='ASME B16.5'!H30 -> 740 | I30: ='ASME B16.34'!H30 -> 1110 | J30: ='ASME B16.34'!I30 -> 1665 | K30: ='ASME B16.34'!J30 -> 2775 | L30: ='ASME B16.34'!K30 -> 4630 | P30: Bar (CL400 not applicable) | S30: 700 | T30: ='ASME B16.34'!T30 -> 110 | U30: ='ASME B16.34'!U30 -> 435 | V30: ='ASME B16.5'!V30 -> 580 | W30: ='ASME B16.34'!V30 -> 870 | X30: ='ASME B16.34'!W30 -> 1305 | Y30: ='ASME B16.34'!X30 -> 2170 | Z30: ='ASME B16.34'!Y30 -> 3620
E31: 750 | F31: ='ASME B16.34'!F31 -> 95 | G31: ='ASME B16.34'!G31 -> 505 | H31: ='ASME B16.5'!H31 -> 675 | I31: ='ASME B16.34'!H31 -> 1015 | J31: ='ASME B16.34'!I31 -> 1520 | K31: ='ASME B16.34'!J31 -> 2535 | L31: ='ASME B16.34'!K31 -> 4230 | P31: A 182 Gr. F316, F316H | S31: 750 | T31: ='ASME B16.34'!T31 -> 95 | U31: ='ASME B16.34'!U31 -> 425 | V31: ='ASME B16.5'!V31 -> 570 | W31: ='ASME B16.34'!V31 -> 855 | X31: ='ASME B16.34'!W31 -> 1280 | Y31: ='ASME B16.34'!X31 -> 2135 | Z31: ='ASME B16.34'!Y31 -> 3560
E32: 800 | F32: ='ASME B16.34'!F32 -> 80 | G32: ='ASME B16.34'!G32 -> 410 | H32: ='ASME B16.5'!H32 -> 550 | I32: ='ASME B16.34'!H32 -> 825 | J32: ='ASME B16.34'!I32 -> 1235 | K32: ='ASME B16.34'!J32 -> 2055 | L32: ='ASME B16.34'!K32 -> 3430 | P32: A 479 Gr. 316, 316H | S32: 800 | T32: ='ASME B16.34'!T32 -> 80 | U32: ='ASME B16.34'!U32 -> 420 | V32: ='ASME B16.5'!V32 -> 565 | W32: ='ASME B16.34'!V32 -> 845 | X32: ='ASME B16.34'!W32 -> 1265 | Y32: ='ASME B16.34'!X32 -> 2110 | Z32: ='ASME B16.34'!Y32 -> 3520
E33: 850 | F33: ='ASME B16.34'!F33 -> 65 | G33: ='ASME B16.34'!G33 -> 320 | H33: ='ASME B16.5'!H33 -> 425 | I33: ='ASME B16.34'!H33 -> 640 | J33: ='ASME B16.34'!I33 -> 955 | K33: ='ASME B16.34'!J33 -> 1595 | L33: ='ASME B16.34'!K33 -> 2655 | P33: Plates | S33: 850 | T33: ='ASME B16.34'!T33 -> 65 | U33: ='ASME B16.34'!U33 -> 420 | V33: ='ASME B16.5'!V33 -> 555 | W33: ='ASME B16.34'!V33 -> 835 | X33: ='ASME B16.34'!W33 -> 1255 | Y33: ='ASME B16.34'!X33 -> 2090 | Z33: ='ASME B16.34'!Y33 -> 3480
E34: 900 | F34: ='ASME B16.34'!F34 -> 50 | G34: ='ASME B16.34'!G34 -> 225 | H34: ='ASME B16.5'!H34 -> 295 | I34: ='ASME B16.34'!H34 -> 445 | J34: ='ASME B16.34'!I34 -> 670 | K34: ='ASME B16.34'!J34 -> 1115 | L34: ='ASME B16.34'!K34 -> 1855 | P34: A 240 Gr. 316, 316H | S34: 900 | T34: ='ASME B16.34'!T34 -> 50 | U34: ='ASME B16.34'!U34 -> 415 | V34: ='ASME B16.5'!V34 -> 555 | W34: ='ASME B16.34'!V34 -> 830 | X34: ='ASME B16.34'!W34 -> 1245 | Y34: ='ASME B16.34'!X34 -> 2075 | Z34: ='ASME B16.34'!Y34 -> 3460
E35: 950 | F35: ='ASME B16.34'!F35 -> 35 | G35: ='ASME B16.34'!G35 -> 135 | H35: ='ASME B16.5'!H35 -> 185 | I35: ='ASME B16.34'!H35 -> 275 | J35: ='ASME B16.34'!I35 -> 410 | K35: ='ASME B16.34'!J35 -> 685 | L35: ='ASME B16.34'!K35 -> 1145 | P35: A 240 Gr. 317, 317H | S35: 950 | T35: ='ASME B16.34'!T35 -> 35 | U35: ='ASME B16.34'!U35 -> 385 | V35: ='ASME B16.5'!V35 -> 515 | W35: ='ASME B16.34'!V35 -> 775 | X35: ='ASME B16.34'!W35 -> 1160 | Y35: ='ASME B16.34'!X35 -> 1930 | Z35: ='ASME B16.34'!Y35 -> 3220
E36: 1000 | F36: ='ASME B16.34'!F36 -> 20 | G36: ='ASME B16.34'!G36 -> 85 | H36: ='ASME B16.5'!H36 -> 115 | I36: ='ASME B16.34'!H36 -> 170 | J36: ='ASME B16.34'!I36 -> 255 | K36: ='ASME B16.34'!J36 -> 430 | L36: ='ASME B16.34'!K36 -> 715 | S36: 1000 | T36: ='ASME B16.34'!T36 -> 20 | U36: ='ASME B16.34'!U36 -> 365 | V36: ='ASME B16.5'!V36 -> 485 | W36: ='ASME B16.34'!V36 -> 725 | X36: ='ASME B16.34'!W36 -> 1090 | Y36: ='ASME B16.34'!X36 -> 1820 | Z36: ='ASME B16.34'!Y36 -> 3030
B38: API 6D (2014) Group 1.3 | C38: Notes | E38: ºF | F38: 150 | G38: 300 | H38: 400 | I38: 600 | J38: 900 | K38: 1500 | L38: 2500 | P38: API 6D (2014) Group 2.3 | Q38: Notes | S38: ºF | T38: 150 | U38: 300 | V38: 400 | W38: 600 | X38: 900 | Y38: 1500 | Z38: 2500
B39: Castings | E39: -20 | F39: ='ASME B16.34'!F39 -> 265 | G39: ='ASME B16.34'!G39 -> 695 | H39: ='ASME B16.5'!H39 -> 930 | I39: ='ASME B16.34'!H39 -> 1395 | J39: ='ASME B16.34'!I39 -> 2090 | K39: ='ASME B16.34'!J39 -> 3480 | L39: ='ASME B16.34'!K39 -> 5805 | P39: Forgings | S39: -20 | T39: ='ASME B16.34'!T39 -> 230 | U39: ='ASME B16.34'!U39 -> 600 | V39: ='ASME B16.5'!V39 -> 800 | W39: ='ASME B16.34'!V39 -> 1200 | X39: ='ASME B16.34'!W39 -> 1800 | Y39: ='ASME B16.34'!X39 -> 3000 | Z39: ='ASME B16.34'!Y39 -> 5000
B40: A 352 Gr. LC1, LCB | C40: up to 650°F/343°C | E40: 100 | F40: ='ASME B16.34'!F40 -> 265 | G40: ='ASME B16.34'!G40 -> 695 | H40: ='ASME B16.5'!H40 -> 930 | I40: ='ASME B16.34'!H40 -> 1395 | J40: ='ASME B16.34'!I40 -> 2090 | K40: ='ASME B16.34'!J40 -> 3480 | L40: ='ASME B16.34'!K40 -> 5805 | P40: A 182 Gr. 304L | Q40: up to 800°F/427°C | S40: 100 | T40: ='ASME B16.34'!T40 -> 230 | U40: ='ASME B16.34'!U40 -> 600 | V40: ='ASME B16.5'!V40 -> 800 | W40: ='ASME B16.34'!V40 -> 1200 | X40: ='ASME B16.34'!W40 -> 1800 | Y40: ='ASME B16.34'!X40 -> 3000 | Z40: ='ASME B16.34'!Y40 -> 5000
B41: A 217 WC1 | C41: up to 875°F/468°C | E41: 200 | F41: ='ASME B16.34'!F41 -> 255 | G41: ='ASME B16.34'!G41 -> 660 | H41: ='ASME B16.5'!H41 -> 880 | I41: ='ASME B16.34'!H41 -> 1320 | J41: ='ASME B16.34'!I41 -> 1980 | K41: ='ASME B16.34'!J41 -> 3300 | L41: ='ASME B16.34'!K41 -> 5505 | P41: A 182 Gr. F316L | S41: 200 | T41: ='ASME B16.34'!T41 -> 195 | U41: ='ASME B16.34'!U41 -> 510 | V41: ='ASME B16.5'!V41 -> 680 | W41: ='ASME B16.34'!V41 -> 1020 | X41: ='ASME B16.34'!W41 -> 1535 | Y41: ='ASME B16.34'!X41 -> 2555 | Z41: ='ASME B16.34'!Y41 -> 4260
B42: Bar (CL400 not applicable) | E42: 300 | F42: ='ASME B16.34'!F42 -> 230 | G42: ='ASME B16.34'!G42 -> 640 | H42: ='ASME B16.5'!H42 -> 850 | I42: ='ASME B16.34'!H42 -> 1275 | J42: ='ASME B16.34'!I42 -> 1915 | K42: ='ASME B16.34'!J42 -> 3190 | L42: ='ASME B16.34'!K42 -> 5315 | P42: Bar (CL400 not applicable) | S42: 300 | T42: ='ASME B16.34'!T42 -> 175 | U42: ='ASME B16.34'!U42 -> 455 | V42: ='ASME B16.5'!V42 -> 610 | W42: ='ASME B16.34'!V42 -> 910 | X42: ='ASME B16.34'!W42 -> 1370 | Y42: ='ASME B16.34'!X42 -> 2280 | Z42: ='ASME B16.34'!Y42 -> 3800
B43: A 675 Gr. 70 | C43: [not confirmed in B16.34 (2004) Table VII-2-1.3] | E43: 400 | F43: ='ASME B16.34'!F43 -> 200 | G43: ='ASME B16.34'!G43 -> 615 | H43: ='ASME B16.5'!H43 -> 820 | I43: ='ASME B16.34'!H43 -> 1230 | J43: ='ASME B16.34'!I43 -> 1845 | K43: ='ASME B16.34'!J43 -> 3075 | L43: ='ASME B16.34'!K43 -> 5125 | P43: A 182 Gr. F304L | Q43: up to 800°F/427°C | S43: 400 | T43: ='ASME B16.34'!T43 -> 160 | U43: ='ASME B16.34'!U43 -> 420 | V43: ='ASME B16.5'!V43 -> 560 | W43: ='ASME B16.34'!V43 -> 840 | X43: ='ASME B16.34'!W43 -> 1260 | Y43: ='ASME B16.34'!X43 -> 2100 | Z43: ='ASME B16.34'!Y43 -> 3500
B44: Plates | E44: 500 | F44: ='ASME B16.34'!F44 -> 170 | G44: ='ASME B16.34'!G44 -> 585 | H44: ='ASME B16.5'!H44 -> 780 | I44: ='ASME B16.34'!H44 -> 1175 | J44: ='ASME B16.34'!I44 -> 1760 | K44: ='ASME B16.34'!J44 -> 2930 | L44: ='ASME B16.34'!K44 -> 4885 | P44: A 182 Gr. F316L | S44: 500 | T44: ='ASME B16.34'!T44 -> 150 | U44: ='ASME B16.34'!U44 -> 395 | V44: ='ASME B16.5'!V44 -> 525 | W44: ='ASME B16.34'!V44 -> 785 | X44: ='ASME B16.34'!W44 -> 1180 | Y44: ='ASME B16.34'!X44 -> 1970 | Z44: ='ASME B16.34'!Y44 -> 3280
B45: A 515 Gr. 65 | C45: up to 800°F/427°C | E45: 600 | F45: ='ASME B16.34'!F45 -> 140 | G45: ='ASME B16.34'!G45 -> 550 | H45: ='ASME B16.5'!H45 -> 735 | I45: ='ASME B16.34'!H45 -> 1105 | J45: ='ASME B16.34'!I45 -> 1655 | K45: ='ASME B16.34'!J45 -> 2755 | L45: ='ASME B16.34'!K45 -> 4595 | P45: A 479 Gr. 304L | Q45: up to 800°F/427°C | S45: 600 | T45: ='ASME B16.34'!T45 -> 140 | U45: ='ASME B16.34'!U45 -> 370 | V45: ='ASME B16.5'!V45 -> 495 | W45: ='ASME B16.34'!V45 -> 745 | X45: ='ASME B16.34'!W45 -> 1115 | Y45: ='ASME B16.34'!X45 -> 1860 | Z45: ='ASME B16.34'!Y45 -> 3100
B46: A 203 Gr. A, D | C46: up to 800°F/427°C | E46: 650 | F46: ='ASME B16.34'!F46 -> 125 | G46: ='ASME B16.34'!G46 -> 535 | H46: ='ASME B16.5'!H46 -> 710 | I46: ='ASME B16.34'!H46 -> 1065 | J46: ='ASME B16.34'!I46 -> 1600 | K46: ='ASME B16.34'!J46 -> 2665 | L46: ='ASME B16.34'!K46 -> 4440 | P46: A 479 Gr. 316L | S46: 650 | T46: ='ASME B16.34'!T46 -> 125 | U46: ='ASME B16.34'!U46 -> 365 | V46: ='ASME B16.5'!V46 -> 485 | W46: ='ASME B16.34'!V46 -> 730 | X46: ='ASME B16.34'!W46 -> 1095 | Y46: ='ASME B16.34'!X46 -> 1825 | Z46: ='ASME B16.34'!Y46 -> 3040
B47: A 516 Gr. 65 | C47: up to 800°F/427°C; CL400 not applicable | E47: 700 | F47: ='ASME B16.34'!F47 -> 110 | G47: ='ASME B16.34'!G47 -> 510 | H47: ='ASME B16.5'!H47 -> 685 | I47: ='ASME B16.34'!H47 -> 1025 | J47: ='ASME B16.34'!I47 -> 1535 | K47: ='ASME B16.34'!J47 -> 2560 | L47: ='ASME B16.34'!K47 -> 4270 | P47: Plates | S47: 700 | T47: ='ASME B16.34'!T47 -> 110 | U47: ='ASME B16.34'!U47 -> 360 | V47: ='ASME B16.5'!V47 -> 480 | W47: ='ASME B16.34'!V47 -> 720 | X47: ='ASME B16.34'!W47 -> 1080 | Y47: ='ASME B16.34'!X47 -> 1800 | Z47: ='ASME B16.34'!Y47 -> 3000
E48: 750 | F48: ='ASME B16.34'!F48 -> 95 | G48: ='ASME B16.34'!G48 -> 475 | H48: ='ASME B16.5'!H48 -> 635 | I48: ='ASME B16.34'!H48 -> 955 | J48: ='ASME B16.34'!I48 -> 1430 | K48: ='ASME B16.34'!J48 -> 2385 | L48: ='ASME B16.34'!K48 -> 3970 | P48: A 240 Gr. 321, 321H | S48: 750 | T48: ='ASME B16.34'!T48 -> 110 | U48: ='ASME B16.34'!U48 -> 355 | V48: ='ASME B16.5'!V48 -> 470 | W48: ='ASME B16.34'!V48 -> 705 | X48: ='ASME B16.34'!W48 -> 1060 | Y48: ='ASME B16.34'!X48 -> 1765 | Z48: ='ASME B16.34'!Y48 -> 2940
E49: 800 | F49: ='ASME B16.34'!F49 -> 80 | G49: ='ASME B16.34'!G49 -> 390 | H49: ='ASME B16.5'!H49 -> 520 | I49: ='ASME B16.34'!H49 -> 780 | J49: ='ASME B16.34'!I49 -> 1175 | K49: ='ASME B16.34'!J49 -> 1955 | L49: ='ASME B16.34'!K49 -> 3255 | S49: 800 | T49: ='ASME B16.34'!T49 -> 80 | U49: ='ASME B16.34'!U49 -> 345 | V49: ='ASME B16.5'!V49 -> 460 | W49: ='ASME B16.34'!V49 -> 690 | X49: ='ASME B16.34'!W49 -> 1035 | Y49: ='ASME B16.34'!X49 -> 1730 | Z49: ='ASME B16.34'!Y49 -> 2880
E50: 850 | F50: ='ASME B16.34'!F50 -> 65 | G50: ='ASME B16.34'!G50 -> 300 | H50: ='ASME B16.5'!H50 -> 400 | I50: ='ASME B16.34'!H50 -> 595 | J50: ='ASME B16.34'!I50 -> 895 | K50: ='ASME B16.34'!J50 -> 1490 | L50: ='ASME B16.34'!K50 -> 2485 | S50: 850 | T50: ='ASME B16.34'!T50 -> 65 | U50: ='ASME B16.34'!U50 -> 340 | V50: ='ASME B16.5'!V50 -> 450 | W50: ='ASME B16.34'!V50 -> 675 | X50: ='ASME B16.34'!W50 -> 1015 | Y50: ='ASME B16.34'!X50 -> 1690 | Z50: ='ASME B16.34'!Y50 -> 2820
E51: 900 | F51: ='ASME B16.34'!F51 -> 50 | G51: ='ASME B16.34'!G51 -> 200 | H51: ='ASME B16.5'!H51 -> 270 | I51: ='ASME B16.34'!H51 -> 405 | J51: ='ASME B16.34'!I51 -> 605 | K51: ='ASME B16.34'!J51 -> 1010 | L51: ='ASME B16.34'!K51 -> 1685 | S51: 900 | T51: ='ASME B16.34'!T51 -> … | U51: ='ASME B16.34'!U51 -> … | V51: ='ASME B16.5'!V51 -> … | W51: ='ASME B16.34'!V51 -> … | X51: ='ASME B16.34'!W51 -> … | Y51: ='ASME B16.34'!X51 -> … | Z51: ='ASME B16.34'!Y51 -> …
E52: 950 | F52: ='ASME B16.34'!F52 -> 35 | G52: ='ASME B16.34'!G52 -> 135 | H52: ='ASME B16.5'!H52 -> 185 | I52: ='ASME B16.34'!H52 -> 275 | J52: ='ASME B16.34'!I52 -> 410 | K52: ='ASME B16.34'!J52 -> 685 | L52: ='ASME B16.34'!K52 -> 1145 | S52: 950 | T52: ='ASME B16.34'!T52 -> … | U52: ='ASME B16.34'!U52 -> … | V52: ='ASME B16.5'!V52 -> … | W52: ='ASME B16.34'!V52 -> … | X52: ='ASME B16.34'!W52 -> … | Y52: ='ASME B16.34'!X52 -> … | Z52: ='ASME B16.34'!Y52 -> …
E53: 1000 | F53: ='ASME B16.34'!F53 -> 20 | G53: ='ASME B16.34'!G53 -> 85 | H53: ='ASME B16.5'!H53 -> 115 | I53: ='ASME B16.34'!H53 -> 170 | J53: ='ASME B16.34'!I53 -> 255 | K53: ='ASME B16.34'!J53 -> 430 | L53: ='ASME B16.34'!K53 -> 715 | S53: 1000 | T53: ='ASME B16.34'!T53 -> … | U53: ='ASME B16.34'!U53 -> … | V53: ='ASME B16.5'!V53 -> … | W53: ='ASME B16.34'!V53 -> … | X53: ='ASME B16.34'!W53 -> … | Y53: ='ASME B16.34'!X53 -> … | Z53: ='ASME B16.34'!Y53 -> …

Sheet ASME B16.5 (hidden)
A1: ASME B16.5 (2017)
B4: ASME B16.5 (2017) Group 1.1 | C4: Notes | E4: ºF | F4: 150 | G4: 300 | H4: 400 | I4: 600 | J4: 900 | K4: 1500 | L4: 2500 | P4: ASME B16.5 (2017) Group 2.1 | Q4: Notes | S4: ºF | T4: 150 | U4: 300 | V4: 400 | W4: 600 | X4: 900 | Y4: 1500 | Z4: 2500
B5: Castings | E5: -20 | F5: 285 | G5: 740 | H5: 985 | I5: 1480 | J5: 2220 | K5: 3705 | L5: 6170 | P5: Castings | S5: -20 | T5: 275 | U5: 720 | V5: 960 | W5: 1440 | X5: 2160 | Y5: 3600 | Z5: 6000
B6: A 216 WCB | C6: up to 800°F/427°C | E6: 100 | F6: 285 | G6: 740 | H6: 985 | I6: 1480 | J6: 2220 | K6: 3705 | L6: 6170 | P6: A 351 Gr. CF3 | Q6: up to 800°F/427°C | S6: 100 | T6: 275 | U6: 720 | V6: 960 | W6: 1440 | X6: 2160 | Y6: 3600 | Z6: 6000
B7: Forgings | E7: 200 | F7: 260 | G7: 680 | H7: 905 | I7: 1360 | J7: 2035 | K7: 3395 | L7: 5655 | P7: A 351 Gr. CF8 | S7: 200 | T7: 230 | U7: 600 | V7: 800 | W7: 1200 | X7: 1800 | Y7: 3000 | Z7: 5000
B8: A 105 | C8: up to 800°F/427°C | E8: 300 | F8: 230 | G8: 655 | H8: 870 | I8: 1310 | J8: 1965 | K8: 3270 | L8: 5450 | P8: Forgings | S8: 300 | T8: 205 | U8: 540 | V8: 715 | W8: 1075 | X8: 1615 | Y8: 2690 | Z8: 4480
B9: A 350 Gr. LF2 | C9: up to 800°F/427°C | E9: 400 | F9: 200 | G9: 635 | H9: 845 | I9: 1265 | J9: 1900 | K9: 3170 | L9: 5280 | P9: A 182 Gr. F304 | S9: 400 | T9: 190 | U9: 495 | V9: 660 | W9: 995 | X9: 1490 | Y9: 2485 | Z9: 4140
B10: A 350 Gr. LF3 | E10: 500 | F10: 170 | G10: 605 | H10: 805 | I10: 1205 | J10: 1810 | K10: 3015 | L10: 5025 | P10: A 182 Gr. F304H | S10: 500 | T10: 170 | U10: 465 | V10: 620 | W10: 930 | X10: 1395 | Y10: 2330 | Z10: 3880
B11: A 350 Gr. LF6 Cl. 1 | C11: up to 500°F/260°C | E11: 600 | F11: 140 | G11: 570 | H11: 755 | I11: 1135 | J11: 1705 | K11: 2840 | L11: 4730 | P11: Plates | S11: 600 | T11: 140 | U11: 440 | V11: 590 | W11: 885 | X11: 1325 | Y11: 2210 | Z11: 3680
B12: Plates | E12: 650 | F12: 125 | G12: 550 | H12: 730 | I12: 1100 | J12: 1650 | K12: 2745 | L12: 4575 | P12: A 240 Gr. 304 | S12: 650 | T12: 125 | U12: 430 | V12: 575 | W12: 865 | X12: 1295 | Y12: 2160 | Z12: 3600
B13: A 515 Gr. 70 | C13: up to 800°F/427°C | E13: 700 | F13: 110 | G13: 530 | H13: 710 | I13: 1060 | J13: 1590 | K13: 2655 | L13: 4425 | P13: A 240 Gr. 304H | S13: 700 | T13: 110 | U13: 420 | V13: 565 | W13: 845 | X13: 1265 | Y13: 2110 | Z13: 3520
B14: A 516 Gr. 70 | C14: up to 800°F/427°C | E14: 750 | F14: 95 | G14: 505 | H14: 675 | I14: 1015 | J14: 1520 | K14: 2535 | L14: 4230 | S14: 750 | T14: 95 | U14: 415 | V14: 550 | W14: 825 | X14: 1240 | Y14: 2065 | Z14: 3440
B15: A 537 Cl. 1 | C15: up to 700°F/371°C | E15: 800 | F15: 80 | G15: 410 | H15: 550 | I15: 825 | J15: 1235 | K15: 2055 | L15: 3430 | S15: 800 | T15: 80 | U15: 405 | V15: 540 | W15: 810 | X15: 1215 | Y15: 2030 | Z15: 3380
E16: 850 | F16: 65 | G16: 320 | H16: 425 | I16: 640 | J16: 955 | K16: 1595 | L16: 2655 | S16: 850 | T16: 65 | U16: 395 | V16: 530 | W16: 790 | X16: 1190 | Y16: 1980 | Z16: 3300
E17: 900 | F17: 50 | G17: 230 | H17: 305 | I17: 460 | J17: 690 | K17: 1150 | L17: 1915 | S17: 900 | T17: 50 | U17: 390 | V17: 520 | W17: 780 | X17: 1165 | Y17: 1945 | Z17: 3240
E18: 950 | F18: 35 | G18: 135 | H18: 185 | I18: 275 | J18: 410 | K18: 685 | L18: 1145 | S18: 950 | T18: 35 | U18: 380 | V18: 510 | W18: 765 | X18: 1145 | Y18: 1910 | Z18: 3180
E19: 1000 | F19: 20 | G19: 85 | H19: 115 | I19: 170 | J19: 255 | K19: 430 | L19: 715 | S19: 1000 | T19: 20 | U19: 355 | V19: 470 | W19: 710 | X19: 1065 | Y19: 1770 | Z19: 2950
B21: ASME B16.5 (2017) Group 1.2 | C21: Notes | E21: ºF | F21: 150 | G21: 300 | H21: 400 | I21: 600 | J21: 900 | K21: 1500 | L21: 2500 | P21: ASME B16.5 (2017) Group 2.2 | Q21: Notes | S21: ºF | T21: 150 | U21: 300 | V21: 400 | W21: 600 | X21: 900 | Y21: 1500 | Z21: 2500
B22: Castings | E22: -20 | F22: 290 | G22: 750 | H22: 1000 | I22: 1500 | J22: 2250 | K22: 3750 | L22: 6250 | P22: Castings | S22: -20 | T22: 275 | U22: 720 | V22: 960 | W22: 1440 | X22: 2160 | Y22: 3600 | Z22: 6000
B23: A 216 Gr. WCC | C23: up to 800°F/427°C | E23: 100 | F23: 290 | G23: 750 | H23: 1000 | I23: 1500 | J23: 2250 | K23: 3750 | L23: 6250 | P23: A 351 Gr. CF3M | Q23: up to 850°F/454°C | S23: 100 | T23: 275 | U23: 720 | V23: 960 | W23: 1440 | X23: 2160 | Y23: 3600 | Z23: 6000
B24: A 352 Gr. LCC | C24: up to 650°F/343°C | E24: 200 | F24: 260 | G24: 750 | H24: 1000 | I24: 1500 | J24: 2250 | K24: 3750 | L24: 6250 | P24: A 351 Gr. CF8M, CG8M | S24: 200 | T24: 235 | U24: 620 | V24: 825 | W24: 1240 | X24: 1860 | Y24: 3095 | Z24: 5160
B25: A 352 Gr. LC2 | E25: 300 | F25: 230 | G25: 730 | H25: 970 | I25: 1455 | J25: 2185 | K25: 3640 | L25: 6070 | P25: Forgings | S25: 300 | T25: 215 | U25: 560 | V25: 745 | W25: 1120 | X25: 1680 | Y25: 2795 | Z25: 4660
B26: A 352 Gr. LC3 | C26: up to 650°F/343°C | E26: 400 | F26: 200 | G26: 705 | H26: 940 | I26: 1405 | J26: 2110 | K26: 3520 | L26: 5865 | P26: A 182 Gr. F316, 316H | S26: 400 | T26: 195 | U26: 515 | V26: 685 | W26: 1025 | X26: 1540 | Y26: 2570 | Z26: 4280
B27: Forgings | E27: 500 | F27: 170 | G27: 665 | H27: 885 | I27: 1330 | J27: 1995 | K27: 3325 | L27: 5540 | P27: A 182 Gr. F317 | S27: 500 | T27: 170 | U27: 480 | V27: 635 | W27: 955 | X27: 1435 | Y27: 2390 | Z27: 3980
B28: A 350 Gr. LF6 Cl. 2 | C28: up to 500°F/260°C | E28: 600 | F28: 140 | G28: 605 | H28: 805 | I28: 1210 | J28: 1815 | K28: 3025 | L28: 5040 | P28: Plates | S28: 600 | T28: 140 | U28: 450 | V28: 600 | W28: 900 | X28: 1355 | Y28: 2255 | Z28: 3760
B29: Plates | E29: 650 | F29: 125 | G29: 590 | H29: 785 | I29: 1175 | J29: 1765 | K29: 2940 | L29: 4905 | P29: A 240 Gr. 316, 316H | S29: 650 | T29: 125 | U29: 440 | V29: 590 | W29: 885 | X29: 1325 | Y29: 2210 | Z29: 3680
B30: A 203 Gr. B, E | C30: up to 800°F/427°C | E30: 700 | F30: 110 | G30: 555 | H30: 740 | I30: 1110 | J30: 1665 | K30: 2775 | L30: 4630 | P30: A 240 Gr. 317 | S30: 700 | T30: 110 | U30: 435 | V30: 580 | W30: 870 | X30: 1305 | Y30: 2170 | Z30: 3620
E31: 750 | F31: 95 | G31: 505 | H31: 675 | I31: 1015 | J31: 1520 | K31: 2535 | L31: 4230 | S31: 750 | T31: 95 | U31: 425 | V31: 570 | W31: 855 | X31: 1280 | Y31: 2135 | Z31: 3560
E32: 800 | F32: 80 | G32: 410 | H32: 550 | I32: 825 | J32: 1235 | K32: 2055 | L32: 3430 | S32: 800 | T32: 80 | U32: 420 | V32: 565 | W32: 845 | X32: 1265 | Y32: 2110 | Z32: 3520
E33: 850 | F33: 65 | G33: 320 | H33: 425 | I33: 640 | J33: 955 | K33: 1595 | L33: 2655 | S33: 850 | T33: 65 | U33: 420 | V33: 555 | W33: 835 | X33: 1255 | Y33: 2090 | Z33: 3480
E34: 900 | F34: 50 | G34: 225 | H34: 295 | I34: 445 | J34: 670 | K34: 1115 | L34: 1855 | S34: 900 | T34: 50 | U34: 415 | V34: 555 | W34: 830 | X34: 1245 | Y34: 2075 | Z34: 3460
E35: 950 | F35: 35 | G35: 135 | H35: 185 | I35: 275 | J35: 410 | K35: 685 | L35: 1145 | S35: 950 | T35: 35 | U35: 385 | V35: 515 | W35: 775 | X35: 1160 | Y35: 1930 | Z35: 3220
E36: 1000 | F36: 20 | G36: 85 | H36: 115 | I36: 170 | J36: 255 | K36: 430 | L36: 715 | S36: 1000 | T36: 20 | U36: 365 | V36: 485 | W36: 725 | X36: 1090 | Y36: 1820 | Z36: 3030
B38: ASME B16.5 (2017) Group 1.3 | C38: Notes | E38: ºF | F38: 150 | G38: 300 | H38: 400 | I38: 600 | J38: 900 | K38: 1500 | L38: 2500 | P38: ASME B16.5 (2017) Group 2.3 | Q38: Notes | S38: ºF | T38: 150 | U38: 300 | V38: 400 | W38: 600 | X38: 900 | Y38: 1500 | Z38: 2500
B39: Castings | E39: -20 | F39: 265 | G39: 695 | H39: 930 | I39: 1395 | J39: 2090 | K39: 3480 | L39: 5805 | P39: Forgings | S39: -20 | T39: 230 | U39: 600 | V39: 800 | W39: 1200 | X39: 1800 | Y39: 3000 | Z39: 5000
B40: A 352 Gr. LC1, LCB | C40: up to 650°F/343°C | E40: 100 | F40: 265 | G40: 695 | H40: 930 | I40: 1395 | J40: 2090 | K40: 3480 | L40: 5805 | P40: A 182 Gr. F304L | Q40: up to 800°F/427°C | S40: 100 | T40: 230 | U40: 600 | V40: 800 | W40: 1200 | X40: 1800 | Y40: 3000 | Z40: 5000
B41: A 217 Gr. WC1 | C41: up to 875°F/468°C | E41: 200 | F41: 255 | G41: 660 | H41: 880 | I41: 1320 | J41: 1980 | K41: 3300 | L41: 5505 | P41: A 182 Gr. F316L, 317L | S41: 200 | T41: 195 | U41: 510 | V41: 680 | W41: 1020 | X41: 1535 | Y41: 2555 | Z41: 4260
B42: Plates | E42: 300 | F42: 230 | G42: 640 | H42: 850 | I42: 1275 | J42: 1915 | K42: 3190 | L42: 5315 | P42: Plates | S42: 300 | T42: 175 | U42: 455 | V42: 610 | W42: 910 | X42: 1370 | Y42: 2280 | Z42: 3800
B43: A 515 Gr. 65 | C43: up to 800°F/427°C | E43: 400 | F43: 200 | G43: 615 | H43: 820 | I43: 1230 | J43: 1845 | K43: 3075 | L43: 5125 | P43: A 240 Gt. 304L | Q43: up to 800°F/427°C | S43: 400 | T43: 160 | U43: 420 | V43: 560 | W43: 840 | X43: 1260 | Y43: 2100 | Z43: 3500
B44: A 516 Gr. 65 | C44: up to 800°F/427°C | E44: 500 | F44: 170 | G44: 585 | H44: 780 | I44: 1175 | J44: 1760 | K44: 2930 | L44: 4885 | P44: A 240 Gt. 316L | S44: 500 | T44: 150 | U44: 395 | V44: 525 | W44: 785 | X44: 1180 | Y44: 1970 | Z44: 3280
B45: A 203 Gr. A, D | C45: up to 800°F/427°C | E45: 600 | F45: 140 | G45: 550 | H45: 735 | I45: 1105 | J45: 1655 | K45: 2755 | L45: 4595 | S45: 600 | T45: 140 | U45: 370 | V45: 495 | W45: 745 | X45: 1115 | Y45: 1860 | Z45: 3100
E46: 650 | F46: 125 | G46: 535 | H46: 710 | I46: 1065 | J46: 1600 | K46: 2665 | L46: 4440 | S46: 650 | T46: 125 | U46: 365 | V46: 485 | W46: 730 | X46: 1095 | Y46: 1825 | Z46: 3040
E47: 700 | F47: 110 | G47: 510 | H47: 685 | I47: 1025 | J47: 1535 | K47: 2560 | L47: 4270 | S47: 700 | T47: 110 | U47: 360 | V47: 480 | W47: 720 | X47: 1080 | Y47: 1800 | Z47: 3000
E48: 750 | F48: 95 | G48: 475 | H48: 635 | I48: 955 | J48: 1430 | K48: 2385 | L48: 3970 | S48: 750 | T48: 95 | U48: 355 | V48: 470 | W48: 705 | X48: 1060 | Y48: 1765 | Z48: 2940
E49: 800 | F49: 80 | G49: 390 | H49: 520 | I49: 780 | J49: 1175 | K49: 1955 | L49: 3255 | S49: 800 | T49: 80 | U49: 345 | V49: 460 | W49: 690 | X49: 1035 | Y49: 1730 | Z49: 2880
E50: 850 | F50: 65 | G50: 300 | H50: 400 | I50: 595 | J50: 895 | K50: 1490 | L50: 2485 | S50: 850 | T50: 65 | U50: 340 | V50: 450 | W50: 675 | X50: 1015 | Y50: 1690 | Z50: 2820
E51: 900 | F51: 50 | G51: 200 | H51: 270 | I51: 405 | J51: 605 | K51: 1010 | L51: 1685 | S51: 900 | T51: … | U51: … | V51: … | W51: … | X51: … | Y51: … | Z51: …
E52: 950 | F52: 35 | G52: 135 | H52: 185 | I52: 275 | J52: 410 | K52: 685 | L52: 1145 | S52: 950 | T52: … | U52: … | V52: … | W52: … | X52: … | Y52: … | Z52: …
E53: 1000 | F53: 20 | G53: 85 | H53: 115 | I53: 170 | J53: 255 | K53: 430 | L53: 715 | S53: 1000 | T53: … | U53: … | V53: … | W53: … | X53: … | Y53: … | Z53: …
